bitfinex-derivatives/quotes_ETHF0:USTF0_20251009
["timestamp","ask_amount","ask_price","bid_price","bid_amount"]
[1759975554655,0.9192,4466.0,4465.9,0.8863]
[1759975554855,0.40298,4465.3,4465.2,0.00228883]
[1759975555058,0.40298,4465.3,4465.2,0.88858883]
[1759975555059,1.32218,4465.3,4465.2,0.88858883]
[1759975555253,1.32218,4465.3,4465.2,0.22828883]
[1759975555565,1.32218,4465.3,4465.2,0.00228883]
[1759975556660,1.32218,4465.3,4465.2,0.91538883]
[1759975558463,0.91988,4465.3,4465.2,0.91538883]
[1759975558664,1.32218,4465.3,4465.2,0.91538883]
[1759975559368,1.32218,4465.3,4465.2,0.39278883]
[1759975559664,1.32218,4465.3,4465.2,0.66258883]
[1759975559864,1.32218,4465.3,4465.2,0.91538883]
[1759975560060,0.91988,4465.3,4465.2,0.91538883]
[1759975560264,0.65848,4465.3,4465.2,0.91538883]
[1759975560968,0.40296,4465.6,4465.5,1.07]
[1759975561568,0.65846,4465.6,4465.5,1.07]
[1759975561764,0.40296,4465.6,4465.5,1.07]
[1759975563165,0.91987,4465.4,4465.3,0.6165]
[1759975563357,1.32217,4465.4,4465.3,0.6603]
[1759975563558,0.91987,4465.4,4465.3,0.9131]
[1759975563767,0.40297,4465.4,4465.3,0.9131]
[1759975563968,0.40297,4465.4,4465.3,1.58255484]
[1759975565272,0.65847,4465.4,4465.3,1.58255484]
[1759975566272,0.9192,4465.3,4465.2,0.00228883]
[1759975567573,0.9192,4465.3,4465.2,0.66258883]
[1759975567769,0.9192,4465.3,4465.2,0.91538883]
[1759975568170,0.2555,4465.3,4465.2,0.91538883]
[1759975568872,0.40297,4465.4,4465.2,0.52488883]
[1759975569066,0.40297,4465.4,4465.3,1.57625484]
[1759975569468,0.64897,4465.4,4465.3,1.57625484]
[1759975569872,0.64897,4465.4,4465.3,0.9068]
[1759975569873,1.28467,4465.4,4465.3,0.9068]
[1759975570072,1.28467,4465.4,4465.3,0.3873]
[1759975570472,1.28467,4465.4,4465.3,0.9068]
[1759975570674,0.90647,4465.4,4465.3,0.9068]
[1759975571076,1.28467,4465.4,4465.3,0.9068]
[1759975573878,0.90647,4465.4,4465.3,0.9068]
[1759975574379,0.90648,4465.3,4465.2,0.00228883]
[1759975574678,1.28468,4465.3,4465.2,0.00228883]
[1759975575177,1.28468,4465.3,4465.2,0.26688883]
[1759975577273,1.28468,4465.3,4465.2,0.65418883]
[1759975578085,0.90648,4465.3,4465.2,0.90908883]
[1759975579784,1.28468,4465.3,4465.2,0.26688883]
[1759975579973,1.28468,4465.3,4465.2,0.00228883]
[1759975580173,1.28468,4465.3,4465.2,0.90908883]
[1759975580174,0.40298,4465.3,4465.2,0.90908883]
[1759975580685,1.00722,4466.4,4465.2,0.90908883]
[1759975580686,3.2078,4466.1,4466.0,0.5195]
[1759975580883,3.2078,4466.1,4466.0,1.0588]
[1759975580884,3.61071,4466.1,4466.0,1.0588]
[1759975581084,0.40291,4466.1,4466.0,1.0588]
[1759975581674,0.64891,4466.1,4466.0,1.0588]
[1759975582084,0.40291,4466.1,4466.0,1.0588]
[1759975582982,3.2078,4466.6,4466.5,1.0588]
[1759975583187,3.61067,4466.6,4466.5,1.0588]
[1759975585577,3.85667,4466.6,4466.5,1.0588]
[1759975585786,0.8817,4465.9,4465.8,0.3873]
[1759975585980,0.90647,4465.4,4465.3,0.3873]
[1759975586187,0.90647,4465.4,4465.3,1.1328]
[1759975586386,0.40296,4465.6,4465.5,0.152]
[1759975586586,0.40296,4465.6,4465.5,0.6715]
[1759975586787,0.40296,4465.6,4465.5,1.0588]
[1759975587189,0.90646,4465.6,4465.5,1.0588]
[1759975587489,0.64896,4465.6,4465.5,1.0588]
[1759975587688,0.40296,4465.6,4465.5,1.0588]
[1759975588089,0.64896,4465.6,4465.5,1.0588]
[1759975591704,1.28466,4465.6,4465.5,0.9068]
[1759975592104,0.90646,4465.6,4465.5,1.0588]
[1759975593004,1.28468,4465.3,4465.2,0.00228883]
[1759975593307,4.49248,4465.3,4465.2,0.00228883]
[1759975593515,4.49248,4465.3,4465.2,0.65418883]
[1759975594006,4.11428,4465.3,4465.2,0.90908883]
[1759975594605,0.40298,4465.3,4465.2,0.90908883]
[1759975595603,0.40297,4465.4,4465.3,0.40297]
[1759975595813,0.40297,4465.4,4465.3,1.30977]
[1759975597512,3.61074,4465.8,4465.7,0.5195]
[1759975597713,3.61074,4465.8,4465.7,1.1328]
[1759975599313,3.85674,4465.8,4465.7,1.1328]
[1759975600212,3.61074,4465.8,4465.7,1.1328]
[1759975602318,2.75085135,4465.8,4465.7,1.53575]
[1759975602511,2.75085135,4465.8,4465.7,6.53575]
[1759975602714,2.75085135,4465.8,4465.7,1.53575]
[1759975603019,3.61068,4466.4,4466.3,0.8988]
[1759975603216,4.47418,4466.4,4466.3,1.1248]
[1759975604112,4.47418,4466.4,4466.3,0.7287]
[1759975604323,0.40288,4466.4,4466.3,1.0952]
[1759975606721,0.40288,4466.5,4466.3,1.13159]
[1759975606921,3.2078,4466.9,4466.8,0.4905]
[1759975607116,3.61064,4466.9,4466.8,1.083]
[1759975607321,4.23704,4466.9,4466.8,1.083]
[1759975608022,3.87064,4466.9,4466.8,1.083]
[1759975609621,3.61064,4466.9,4466.8,1.083]
[1759975609824,4.48554,4466.9,4466.8,1.083]
[1759975610718,3.87064,4466.9,4466.8,1.083]
[1759975610919,3.61064,4466.9,4466.8,1.083]
[1759975611521,0.40282,4467.1,4467.0,1.009]
[1759975612222,0.00265843,4467.2,4467.1,1.01162]
[1759975612525,0.00265843,4467.2,4467.1,1.25982]
[1759975613320,1.00681,4468.2,4467.6,0.40277]
[1759975613522,0.40272,4468.2,4468.1,0.857]
[1759975614521,0.40466612,4468.2,4468.1,0.857]
[1759975615021,0.66466612,4468.2,4468.1,0.857]
[1759975615227,0.91126,4467.8,4467.7,0.4683]
[1759975615427,1.27766,4467.8,4467.7,0.7165]
[1759975615726,1.27766,4467.8,4467.7,1.083]
[1759975618129,0.40276,4467.8,4467.7,1.083]
[1759975620825,1.27766,4467.8,4467.7,0.226]
[1759975621432,1.27766,4467.8,4467.7,0.4683]
[1759975622030,1.27766,4467.8,4467.7,1.083]
[1759975622633,1.02916,4467.8,4467.7,1.083]
[1759975623430,1.27766,4467.8,4467.7,0.226]
[1759975624135,1.27766,4467.8,4467.7,1.083]
[1759975625135,1.02916,4467.8,4467.7,1.083]
[1759975625336,1.27766,4467.8,4467.7,0.7165]
[1759975625636,4.48546,4467.8,4467.7,0.226]
[1759975625836,4.48546,4467.8,4466.8,0.3665]
[1759975625837,0.40284,4466.9,4466.8,0.3665]
[1759975626130,1.02927,4466.5,4466.4,4.0648]
[1759975626328,1.52049,4467.0,4466.4,3.9233]
[1759975626527,0.7734,4467.0,4466.9,0.4905]
[1759975626832,1.02923,4467.0,4466.9,1.082]
[1759975627627,1.00692,4467.8,4467.2,0.89331]
[1759975627839,0.40281,4467.3,4467.2,0.857]
[1759975630134,1.01601,4467.3,4467.2,0.857]
[1759975630332,1.01601,4467.3,4466.9,3.6798]
[1759975630333,0.55753,4467.0,4466.9,3.6798]
[1759975630633,1.42493,4467.0,4466.9,0.472]
[1759975631728,1.42493,4467.0,4466.9,0.225]
[1759975631935,1.42493,4467.0,4466.9,0.472]
[1759975633342,1.42493,4467.0,4466.9,0.733]
[1759975638243,1.42493,4467.0,4466.9,1.0924]
[1759975639845,1.27023,4467.0,4466.9,1.0924]
[1759975640346,1.42133,4467.0,4466.9,0.225]
[1759975640744,1.42133,4467.0,4466.9,0.4688]
[1759975641146,1.42133,4467.0,4466.9,0.7076]
[1759975643147,0.40283,4467.0,4466.9,1.0848]
[1759975644347,1.01913,4467.0,4466.9,1.0848]
[1759975645152,1.41173,4467.0,4466.9,1.0848]
[1759975647851,1.26063,4467.0,4466.9,1.0848]
[1759975648950,1.41173,4467.0,4466.9,0.4688]
[1759975649549,1.41173,4467.0,4466.9,1.0848]
[1759975650248,1.26069,4466.3,4466.2,0.2438]
[1759975650452,1.26073,4465.9,4465.8,0.8598]
[1759975650649,1.26073,4465.9,4465.8,0.7076]
[1759975652349,1.26073,4465.9,4465.8,0.4688]
[1759975653146,1.26073,4465.9,4465.8,0.7076]
[1759975653350,1.26073,4465.9,4465.8,1.0848]
[1759975653853,1.26073,4465.9,4465.8,0.7076]
[1759975654352,4.11947421,4465.9,4465.8,0.225]
[1759975654654,4.11947421,4465.9,4465.8,0.4688]
[1759975656754,4.11947421,4465.9,4465.8,0.225]
[1759975657759,0.89318,4465.3,4465.2,0.00228883]
[1759975658061,0.40305,4464.5,4464.4,0.8598]
[1759975658256,0.40305,4464.5,4464.4,0.9898]
[1759975658858,0.40507964,4464.5,4464.4,0.99201324]
[1759975659064,0.40507964,4464.5,4464.4,2.33769901]
[1759975659259,0.40507964,4464.5,4464.4,2.16043363]
[1759975660759,0.00202964,4464.5,4464.4,2.16043363]
[1759975661359,0.40507964,4464.5,4464.4,1.39507324]
[1759975661567,0.40507964,4464.5,4464.4,1.75737363]
[1759975663266,0.40507964,4464.5,4464.4,1.39507324]
[1759975663463,0.40507964,4464.5,4464.4,2.16043363]
[1759975663665,0.40507964,4464.5,4464.4,1.75737363]
[1759975664668,0.40507964,4464.5,4464.4,2.16043363]
[1759975665067,0.40507964,4464.5,4464.4,1.75737363]
[1759975665468,1.00407964,4464.5,4464.4,1.75737363]
[1759975666468,1.00407964,4464.5,4464.4,0.99201324]
[1759975667867,1.00407964,4464.5,4464.4,1.75737363]
[1759975667868,1.40287964,4464.5,4464.4,1.75737363]
[1759975668268,1.00407964,4464.5,4464.4,1.75737363]
[1759975669176,0.40507964,4464.5,4464.4,1.75737363]
[1759975669870,0.40312,4463.8,4463.7,3.2078]
[1759975670072,0.40327,4462.2,4462.0,1.60922845]
[1759975670272,0.76536039,4462.1,4461.0,0.15624268]
[1759975670469,0.76536039,4462.1,4461.1,0.3624]
[1759975670470,0.76536039,4461.2,4461.1,0.3624]
[1759975670669,0.76536039,4461.2,4461.1,0.6071]
[1759975670870,0.00199022,4461.2,4461.1,0.60888904]
[1759975671075,0.00199022,4461.2,4461.1,0.85318904]
[1759975671373,0.00199022,4461.2,4461.1,1.84354943]
[1759975672274,0.00199022,4461.2,4461.1,1.61854943]
[1759975672275,2.85565018,4461.2,4461.1,1.61854943]
[1759975672574,0.00199022,4461.2,4461.1,0.85318904]
[1759975673274,0.00199022,4461.2,4461.1,0.36418904]
[1759975673275,7.9386838,4461.2,4461.1,0.36418904]
[1759975673572,1.00841,4461.1,4460.5,0.1524]
[1759975673777,3.97316039,4460.6,4460.0,0.1524]
[1759975673976,0.40344,4460.2,4460.0,0.1524]
[1759975674173,2.85911107,4460.5,4460.2,0.3624]
[1759975674379,0.40343,4460.4,4460.3,0.8514]
[1759975674569,0.40343,4460.4,4460.3,0.85399225]
[1759975674874,0.40343,4460.4,4460.3,0.36499225]
[1759975675073,0.40343,4460.4,4460.3,0.85399225]
[1759975675375,3.61119,4460.8,4460.7,0.489]
[1759975675675,3.61119,4460.8,4460.7,1.0764]
[1759975675972,3.2078,4460.8,4460.7,1.0764]
[1759975676772,0.40338,4461.0,4460.8,0.3624]
[1759975676976,0.40338,4461.0,4460.9,0.8514]
[1759975678773,0.00199022,4461.2,4461.1,0.2447]
[1759975678975,0.00199022,4461.2,4461.1,3.76836744]
[1759975681977,0.00199022,4461.2,4461.1,1.0434]
[1759975682389,2.89851205,4461.2,4461.1,0.5544]
[1759975683478,7.89851205,4461.2,4461.1,0.3624]
[1759975683783,0.40341,4460.6,4460.5,0.1524]
[1759975683980,0.40341,4460.6,4460.5,0.5148]
[1759975683981,3.61121,4460.6,4460.5,0.5148]
[1759975684281,3.61121,4460.6,4460.5,1.0038]
[1759975684282,6.51529621,4460.6,4460.5,1.0038]
[1759975685278,3.2078,4461.1,4460.5,1.0038]
[1759975685482,3.61116,4461.1,4461.0,1.0038]
[1759975685683,3.61116,4461.1,4461.0,0.7595]
[1759975685986,6.46465449,4461.1,4461.0,0.7595]
[1759975686688,6.46465449,4461.1,4461.0,0.5148]
[1759975687078,6.46465449,4461.1,4461.0,0.7595]
[1759975687684,6.46465449,4461.1,4461.0,0.5148]
[1759975687984,0.40341,4460.6,4460.5,0.7398]
[1759975688284,3.61121,4460.6,4460.5,0.7398]
[1759975688480,6.50698005,4460.6,4460.5,0.7398]
[1759975688680,6.50698005,4460.6,4460.5,0.5148]
[1759975689393,0.40343,4460.4,4460.3,0.00259225]
[1759975689578,0.40344,4460.2,4460.1,0.47266251]
[1759975689779,0.95323755,4460.2,4460.1,0.47266251]
[1759975689976,3.82411599,4460.2,4460.1,0.47266251]
[1759975690180,4.04911599,4460.2,4460.1,0.47266251]
[1759975690686,4.04911599,4460.2,4460.1,0.47436088]
[1759975691194,3.82411599,4460.2,4460.1,0.47436088]
[1759975691587,4.04911599,4460.2,4460.1,0.47436088]
[1759975692188,4.04911599,4460.2,2856.4,1.69905851]
[1759975692189,3.716,4459.0,4457.4,1.8085806]
[1759975692492,1.00931,4457.2,4455.5,0.1526]
[1759975692692,3.2078,4456.1,4456.0,0.1526]
[1759975692984,2.8830769,4457.1,4457.0,0.5236]
[1759975693188,0.0017133,4457.1,4457.0,3.25074363]
[1759975693392,0.0017133,4457.1,4457.0,5.52577619]
[1759975693590,0.4054333,4457.1,4457.0,5.52577619]
[1759975693982,3.2078,4457.7,4457.6,0.371]
[1759975694179,0.40364,4458.0,4457.6,0.371]
[1759975694385,0.40364,4458.1,4458.0,0.1526]
[1759975694591,0.40364,4458.1,4458.0,0.5236]
[1759975694985,0.40558904,4458.1,4458.0,0.5236]
[1759975695185,3.3657073,4458.1,4458.0,0.5236]
[1759975695386,3.51779671,4458.1,4457.5,0.225]
[1759975695583,0.00194904,4458.1,4457.5,0.225]
[1759975695795,0.3558,4457.7,4457.5,0.225]
[1759975696398,3.61147,4457.8,4457.5,0.22764197]
[1759975696597,3.2078,4457.8,4457.5,0.22764197]
[1759975696895,3.61146,4457.8,4457.5,0.22764197]
[1759975697198,0.40368,4457.7,4457.5,0.22764197]
[1759975697386,0.40368,4457.7,4457.5,0.36174197]
[1759975697586,3.2078,4457.8,4457.7,0.1341]
[1759975697783,0.40367,4457.7,4457.5,5.36174197]
[1759975698191,0.3558,4457.6,4457.5,0.22764197]
[1759975698496,0.92023535,4457.6,4457.5,0.22764197]
[1759975698896,0.92023535,4457.6,4457.5,0.05811294]
[1759975699382,0.92023535,4457.6,4457.5,0.00264197]
[1759975699586,0.40376,4456.7,4456.6,0.1341]
[1759975699796,0.96885974,4456.7,4456.6,0.2261]
[1759975700090,1.32465974,4456.7,4456.6,0.092]
[1759975700290,0.56509974,4456.7,4456.6,0.2261]
[1759975700495,0.40374,4457.0,4456.6,0.0941575]
[1759975700687,0.96871521,4456.9,4456.7,0.1341]
[1759975700991,0.96871521,4456.9,4456.6,0.0941575]
[1759975700992,0.75956,4456.7,4456.6,0.0941575]
[1759975701289,1.32452521,4456.7,4456.6,0.0021575]
[1759975701996,0.40381,4456.1,4456.0,0.226]
[1759975702290,4.17657521,4456.1,4456.0,0.226]
[1759975702493,4.53237521,4456.1,4456.0,0.226]
[1759975703086,4.53237521,4456.1,4456.0,0.22878241]
[1759975703287,4.53237521,4456.1,4455.0,3.3419]
[1759975703288,0.1465,4456.0,4455.0,0.1341]
[1759975703596,3.61167,4455.5,4455.0,0.1341]
[1759975703891,3.61167,4455.5,4455.1,0.1341]
[1759975703892,3.2078,4455.5,4455.1,0.1341]
[1759975704196,3.2078,4455.5,4455.1,0.1369186]
[1759975704389,3.2078,4455.5,4455.2,0.1341]
[1759975704589,0.40389,4455.3,4455.2,0.1341]
[1759975704994,3.2078,4456.3,4455.3,0.40388]
[1759975705189,0.96521404,4456.2,4455.2,0.1341]
[1759975705490,0.96522404,4456.1,4455.5,0.53796]
[1759975705689,0.5610973,4456.0,4455.4,0.53797]
[1759975705890,3.5636,4456.3,4455.4,0.40387]
[1759975706204,3.2078,4455.7,4455.6,0.1341]
[1759975706989,3.5636,4455.7,4455.1,0.2288186]
[1759975707293,3.5636,4455.7,4455.1,0.3629186]
[1759975707793,3.5636,4455.7,4455.6,0.1341]
[1759975707794,3.2078,4455.7,4455.6,0.1341]
[1759975708990,3.2078,4455.7,4455.6,5.1341]
[1759975710196,0.3558,4456.2,4456.1,0.40381]
[1759975710398,0.3558,4456.2,4456.1,0.226]
[1759975710601,0.75961,4456.2,4456.1,0.226]
[1759975711602,0.3558,4456.2,4456.1,0.226]
[1759975712690,0.3558,4455.4,4455.1,0.0028186]
[1759975712900,3.5636,4455.2,4455.1,0.0028186]
[1759975713193,0.3558,4455.2,4455.1,0.2288186]
[1759975714703,0.1465,4454.0,4453.8,3.61182]
[1759975715003,0.1465,4455.0,4454.8,0.40393]
[1759975715199,3.2078,4455.8,4455.4,0.40388]
[1759975715398,0.3558,4455.7,4455.5,1.82311198]
[1759975715707,0.35858837,4455.7,4455.6,0.226]
[1759975716400,0.1465,4456.0,4455.7,1.06066361]
[1759975716706,0.40384,4455.9,4455.7,1.06066361]
[1759975717206,3.2078,4455.8,4455.7,1.06066361]
[1759975717503,2.1487993,4455.8,4455.7,0.226]
[1759975717697,0.00166291,4455.8,4455.7,0.226]
[1759975718497,0.35746291,4455.8,4455.7,0.226]
[1759975719003,0.61336291,4455.8,4455.7,0.4196]
[1759975719305,0.86236291,4455.8,4455.7,0.226]
[1759975719604,4.61484227,4455.8,4455.7,0.226]
[1759975720704,7.53049949,4455.8,4455.7,0.4196]
[1759975720897,4.10994227,4455.8,4455.7,0.4196]
[1759975722204,3.75414227,4455.8,4455.6,0.50066]
[1759975722396,0.00166291,4455.8,4455.7,0.2541]
[1759975725608,3.2078,4456.3,4456.2,0.63641]
[1759975725810,3.2078,4456.3,4456.2,0.86241]
[1759975726811,3.21069537,4456.3,4456.2,0.86241]
[1759975727807,0.00289537,4456.3,4456.2,0.86241]
[1759975728207,3.2078,4457.0,4456.9,0.168]
[1759975728408,3.2078,4457.0,4456.9,0.4465]
[1759975728615,0.4037,4457.4,4456.9,0.4465]
[1759975728804,3.2078,4457.5,4457.3,0.5717]
[1759975729009,3.2078,4457.5,4456.9,0.226]
[1759975729010,3.2078,4458.0,4457.9,0.2205]
[1759975729308,3.20956166,4458.0,4457.9,0.4465]
[1759975729911,0.00176166,4458.0,4457.9,0.4465]
[1759975732315,0.00176166,4458.0,4457.9,5.4465]
[1759975733010,0.64240166,4458.0,4457.8,1.20394038]
[1759975733219,0.5975,4457.8,4457.7,3.2078]
[1759975733510,0.5975,4457.8,4457.7,3.6543]
[1759975733711,0.5975,4457.8,4457.7,3.4863]
[1759975734017,0.23876166,4458.0,4457.8,0.40366]
[1759975734315,0.00176166,4458.0,4457.9,0.0525]
[1759975734906,0.23876166,4458.0,4457.7,3.2078]
[1759975735207,1.00115,4457.9,4457.8,0.226]
[1759975735606,0.8345,4457.5,4457.2,1.60765038]
[1759975735906,0.5975,4457.4,4457.3,0.6297]
[1759975736104,0.5975,4457.4,4457.3,0.226]
[1759975736309,1.39731,4457.3,4457.2,0.084]
[1759975736513,4.97831,4457.3,4457.2,0.31]
[1759975736712,4.97831,4457.3,4457.2,0.226]
[1759975738612,1.63434,4457.0,4456.9,0.084]
[1759975738913,1.63434,4457.0,4456.9,0.31]
[1759975739510,1.17306,4456.7,4456.5,1.60772038]
[1759975739818,1.00126,4456.7,4456.6,0.394]
[1759975740213,1.39736,4456.7,4456.6,0.394]
[1759975740415,1.77056,4456.7,4456.6,0.226]
[1759975740714,6.77056,4456.7,4456.6,0.226]
[1759975741618,1.23832,4456.0,4455.9,35.008]
[1759975741814,4.44612,4456.0,4455.9,35.008]
[1759975742014,1.17316,4455.6,4455.2,1.20394038]
[1759975742212,1.77066,4455.6,4455.5,0.22784269]
[1759975744316,1.3668,4455.6,4455.5,0.22784269]
[1759975744822,1.00129,4456.4,4456.3,0.7807]
[1759975745009,0.40379,4456.4,4456.3,0.5045]
[1759975745214,1.00129,4456.4,4456.3,0.226]
[1759975746926,0.40384,4455.8,4455.6,1.20323921]
[1759975747123,0.40384,4455.8,4455.5,0.00184269]
[1759975747124,1.00136,4455.6,4455.5,0.00184269]
[1759975747318,4.20916,4455.6,4455.5,0.22784269]
[1759975748919,4.20916,4455.6,4455.5,0.22884269]
[1759975749723,3.8053,4455.6,4455.5,0.22884269]
[1759975749915,3.2078,4456.2,4455.6,0.2634]
[1759975750225,3.2078,4456.2,4455.7,0.227]
[1759975750428,1.00363,4455.9,4455.8,0.227]
[1759975750624,0.5998,4455.9,4455.8,0.227]
[1759975750921,1.23023,4456.0,4455.8,0.2634]
[1759975751120,3.2078,4456.2,4455.9,0.4904]
[1759975751316,3.2078,4457.2,4456.1,3.14182064]
[1759975751521,3.2078,4457.2,4457.0,1.20284855]
[1759975751821,3.8076,4457.8,4457.2,0.40371]
[1759975752026,0.5998,4457.4,4457.3,0.4037]
[1759975752221,0.2266,4457.5,4457.3,0.4037]
[1759975752427,0.8264,4457.5,4457.4,3.2078]
[1759975752823,0.00176166,4458.0,4457.9,0.40365]
[1759975753124,1.00337,4458.8,4458.2,0.40362]
[1759975753324,0.40357,4458.8,4458.4,0.4036]
[1759975753519,0.63016,4459.0,4458.5,0.227]
[1759975753729,0.2266,4459.0,4458.6,0.40358]
[1759975753926,0.82798268,4459.0,4458.7,0.40358]
[1759975754226,0.60138268,4459.0,4458.8,0.40196]
[1759975754424,0.60138268,4459.0,4458.7,0.0019832]
[1759975754621,0.5998,4458.9,4458.7,0.0019832]
[1759975754822,0.5998,4458.9,4458.7,0.4055632]
[1759975755520,0.63174268,4459.0,4458.7,0.0019832]
[1759975755723,0.5998,4458.8,4458.7,0.0019832]
[1759975756128,5.5998,4458.8,4458.7,0.0019832]
[1759975758828,5.5998,4458.8,4457.6,1.60584614]
[1759975758829,0.2266,4458.5,4457.6,1.20216614]
[1759975759023,1.00346,4457.8,4457.7,0.132]
[1759975759832,1.00346,4457.8,4457.7,0.13447531]
[1759975760534,0.5998,4457.8,4457.7,0.13447531]
[1759975762628,3.2078,4458.2,4457.9,0.40365]
[1759975762831,3.2078,4458.2,4458.0,0.40364]
[1759975763029,0.5998,4458.4,4458.1,0.40363]
[1759975763329,0.40359,4458.6,4458.1,0.40363]
[1759975763733,3.2078,4458.7,4457.9,1.20216614]
[1759975763930,3.2078,4458.7,4458.4,0.4036]
[1759975764131,3.2078,4458.7,4458.5,0.227]
[1759975764330,0.82798268,4459.0,4458.7,0.40357]
[1759975764732,0.5998,4458.9,4458.7,0.40357]
[1759975765133,0.00158268,4459.0,4458.9,0.40356]
[1759975765830,0.60138268,4459.0,4458.9,0.40356]
[1759975766029,0.60138268,4459.0,4458.6,0.40358]
[1759975766228,0.5998,4458.9,4458.7,0.40357]
[1759975766429,0.5998,4458.9,4458.5,1.42916614]
[1759975766430,0.5998,4458.8,4458.5,1.20216614]
[1759975766733,0.2266,4458.5,4458.4,0.227]
[1759975767331,0.8264,4458.5,4458.4,0.227]
[1759975768032,0.22818268,4459.0,4458.4,0.227]
[1759975768538,0.22818268,4459.0,4458.8,0.40357]
[1759975768539,0.63173268,4459.0,4458.8,0.40357]
[1759975768741,0.5998,4458.9,4458.8,0.40357]
[1759975769033,0.5998,4458.9,4458.4,0.227]
[1759975769234,0.22818268,4459.0,4458.4,0.227]
[1759975769438,0.22818268,4459.0,4458.7,0.40357]
[1759975769737,0.22818268,4459.0,4458.4,0.227]
[1759975769938,0.40357,4458.8,4458.6,0.40359]
[1759975770139,0.5998,4458.7,4458.6,0.40359]
[1759975770739,0.82798268,4459.0,4458.8,0.40357]
[1759975771042,0.82798268,4459.0,4458.9,0.227]
[1759975772340,1.23154268,4459.0,4458.8,0.40357]
[1759975772530,1.23154268,4459.0,4458.9,0.227]
[1759975772531,0.82798268,4459.0,4458.9,0.227]
[1759975774442,0.00158268,4459.0,4458.9,0.227]
[1759975776945,0.00158268,4459.0,4458.8,3.61137]
[1759975777242,1.3655,4458.9,4458.8,3.2078]
[1759975777444,0.5998,4458.9,4458.8,3.4348]
[1759975777646,0.00158268,4459.0,4458.8,3.83837]
[1759975777841,0.5998,4458.9,4458.8,4.40984829]
[1759975778145,1.38386,4458.9,4458.8,3.4348]
[1759975778341,0.22818268,4459.0,4458.6,1.20336107]
[1759975778342,4.44488268,4459.0,4458.6,1.20336107]
[1759975778545,4.44488268,4459.0,4457.7,1.99027585]
[1759975778546,0.99772,4458.3,4458.2,1.20336107]
[1759975778738,0.99772,4458.3,4458.2,1.43036107]
[1759975778942,0.99772,4458.3,4458.2,0.227]
[1759975779341,0.5941,4458.3,4458.2,0.227]
[1759975779642,0.6302,4458.5,4458.3,0.40361]
[1759975779838,0.6302,4458.5,4458.2,0.227]
[1759975779839,0.4036,4458.5,4458.4,1.20494908]
[1759975780044,0.9977,4458.5,4458.4,1.20494908]
[1759975780244,1.2239,4458.5,4458.4,1.20494908]
[1759975780446,0.5941,4458.3,4458.2,0.63062]
[1759975781254,0.40361,4458.4,4458.2,0.63062]
[1759975781451,0.40359,4458.6,4458.2,1.83589748]
[1759975781748,0.40361,4458.4,4458.2,1.83589748]
[1759975782148,0.5941,4458.3,4458.2,1.83589748]
[1759975782342,0.5941,4458.3,4458.2,0.227]
[1759975784044,0.5941,4458.3,4458.2,0.63062]
[1759975784449,0.5941,4458.3,4458.2,2.24074229]
[1759975786253,0.99772,4458.3,4458.2,2.24074229]
[1759975786441,0.5941,4458.3,4458.2,2.24074229]
[1759975786641,0.78342,4458.3,4458.2,1.83712229]
[1759975786954,0.98963,4458.1,4458.0,1.6103332]
[1759975787248,0.40363,4458.1,4458.0,0.227]
[1759975787451,0.586,4458.9,4458.4,0.40361]
[1759975787651,0.98956,4458.9,4458.8,1.20769212]
[1759975787851,0.98956,4458.9,4458.8,1.43469212]
[1759975788152,0.00158268,4459.0,4458.9,0.40356]
[1759975788343,3.2078,4459.6,4458.8,0.227]
[1759975788547,0.40352,4459.4,4459.2,0.40353]
[1759975788755,0.40352,4459.4,4459.3,0.227]
[1759975789351,0.40348,4459.8,4459.4,0.40351]
[1759975789655,0.40552738,4459.8,4459.7,1.20746266]
[1759975789951,0.40552738,4459.8,4459.7,1.43446266]
[1759975790545,0.40552738,4459.8,4459.7,0.227]
[1759975790942,3.2078,4460.6,4459.7,2.95447682]
[1759975791245,3.2078,4460.6,4460.5,1.20749936]
[1759975791449,3.2078,4460.6,4460.5,1.43449936]
[1759975791851,0.40339,4460.9,4460.5,1.43449936]
[1759975792151,0.40581516,4460.9,4460.7,1.20749936]
[1759975792742,0.00242516,4460.9,4460.7,1.20749936]
[1759975792951,0.00242516,4460.9,4460.8,0.40339]
[1759975793554,0.00242516,4460.9,4460.5,0.227]
[1759975793751,0.40580516,4460.9,4460.6,0.4034]
[1759975794251,0.00242516,4460.9,4460.7,0.4034]
[1759975794449,0.00242516,4460.9,4460.8,1.2046404]
[1759975795450,0.99180516,4460.9,4460.7,1.2046404]
[1759975795650,0.586,4460.8,4460.7,1.2046404]
[1759975795855,0.586,4460.8,4460.7,0.227]
[1759975796257,0.586,4460.8,4460.6,1.2046404]
[1759975796258,0.9894,4460.7,4460.6,1.2046404]
[1759975796451,0.4034,4460.8,4460.4,0.40343]
[1759975796751,0.98939,4460.8,4460.5,1.83405615]
[1759975797157,0.586,4460.8,4460.6,0.4034]
[1759975797352,0.98939,4460.8,4460.5,1.43064615]
[1759975797553,0.98939,4460.8,4460.5,1.83405615]
[1759975798255,0.4034,4460.7,4460.5,1.43064615]
[1759975798457,0.9894,4460.7,4460.5,0.227]
[1759975799654,0.586,4460.6,4460.5,0.227]
[1759975799852,0.9658,4460.6,4460.5,0.227]
[1759975800449,0.9658,4460.4,4460.3,1.20364615]
[1759975800652,1.01476,4460.0,4459.8,1.20364615]
[1759975800856,1.75118,4459.8,4459.7,1.20364615]
[1759975801153,0.9658,4459.1,4459.0,0.4078894]
[1759975801354,0.8175,4459.5,4459.0,0.4078894]
[1759975801554,3.2078,4460.4,4459.2,2.72747682]
[1759975801758,3.2078,4460.4,4459.0,5.4078894]
[1759975801759,0.8175,4460.5,4459.7,2.72747682]
[1759975801961,0.40344,4460.3,4459.9,0.40347]
[1759975802159,3.2078,4460.4,4459.8,0.227]